[Event "Teplice Open 2022"]
[Site "Teplice"]
[Date "2022.06.20"]
[Round "3.20"]
[White "Karthik Venkataraman"]
[Black "Eidelman, Gabriel"]
[Result "1-0"]
[ECO "A45"]
[WhiteElo "2480"]
[BlackElo "2122"]
[Annotator "TA"]
[PlyCount "157"]
[EventDate "2022.06.18"]
[EventType "swiss"]
[EventCountry "CZE"]
[SourceTitle "playchess.com"]
[Source "ChessBase"]
[SourceQuality "1"]
[TimeControl "40/5400+30:1800+30"]

{[%evp 16,157,25,12,23,20,31,-13,-1,-9,11,-14,-7,-105,-95,-139,-125,-131,-129,-163,-118,-110,-62,-125,-117,-252,-248,-472,-501,-546,-296,-291,-153,-154,-155,-156,-157,-156,0,0,0,0,0,0,0,0,0,0,0,0,6,2,4,0,0,0,10,16,8,1,33,33,33,18,29,31,32,29,25,31,32,36,25,19,26,10,7,4,17,17,17,17,28,10,10,10,10,0,0,6,8,8,66,66,66,66,66,66,66,66,66,38,38,38,41,38,38,38,38,38,38,38,38,38,38,38,38,0,0,0,0,0,38,38,38,38,38,38,6396,6365,6254,5925,4520,0,0,0,0,0,0,0,8,8,8,15]} 1. d4 {[%emt 0:03:03]} Nf6 {[%emt 0:00:15]} 2. Bg5 {[%emt 0:00:09]} Ne4 {[%emt 0:00:07]} 3. Bf4 {[%emt 0:00:06]} c5 {[%emt 0:00:06]} 4. f3 {[%emt 0:00:06]} Qa5+ {[%emt 0:00:07]} 5. c3 {[%emt 0:00:05]} Nf6 {[%emt 0:00:12]} 6. d5 {[%emt 0:00:04]} Qb6 {[%emt 0:01:51]} 7. Bc1 {[%emt 0:01:45]} e6 {[%emt 0:00:39]} 8. c4 {[%emt 0:03:32]} exd5 {[%emt 0:00:08]} 9. cxd5 {[%emt 0:00:11]} c4 {[%emt 0:01:00] A45: Trompowsky Attack.} 10. e3 {[%emt 0:12:45]} Bc5 {[%emt 0:04:43]} 11. Kf2 {[%emt 0:00:16]} O-O {[%emt 0:08:12]} 12. Bxc4 {[%emt 0:00:24]} Re8 {[%emt 0:03:57]} 13. Qb3 {[%emt 0:00:43]} Qd6 {[%emt 0:07:03][%cal Ob7b5]} 14. Nh3 {[%emt 0:06:53] [#]} (14. Nc3 $11) 14... b5 $146 {[%emt 0:25:48]} ({Predecessor:} 14... Na6 15. Nc3 Nc7 16. g3 b5 17. Bd3 Qe5 18. Kg2 Ncxd5 19. Nxd5 Nxd5 20. Re1 Nb4 21. Bxb5 Rb8 {½-½ (37) Liew,C (2287)-Segarra,R (2343) Manila 2013}) 15. Bxb5 {[%emt 0:01:01]} Na6 $1 {[%emt 0:05:28]} 16. Nc3 {[%emt 0:09:41]} Rb8 $1 {[%emt 0:05:40]} 17. Qd1 {[%emt 0:06:42]} Nc7 {[%emt 0:03:19]} 18. Bc4 {[%emt 0:00:27] [#]} Qe5 {[%emt 0:02:46]} ({Better is} 18... Rxe3 $1 $17 {[%mdl 512]} 19. Bxe3 Rxb2+ 20. Kf1 Ba6) 19. Re1 {[%emt 0:07:03]} (19. g3 $1 $15) 19... Qxh2 {[%emt 0:01:40] White must now prevent ...d6.} 20. Ne2 {[%emt 0:22:23]} (20. Rh1 $17 Rxb2+ 21. Be2 Rxe2+ 22. Nxe2) 20... d6 $19 {[%emt 0:04:20]} 21. Nef4 {[%emt 0:10:35] [#]} (21. Rh1 Qe5 22. Nhf4) 21... Nh5 $1 {[%emt 0:03:16][%mdl 512]} 22. Rh1 {[%emt 0:02:22]} (22. b3 Nxf4) 22... Qg3+ {[%emt 0:13:19]} 23. Kf1 {[%emt 0:00:05]} Nxf4 {[%emt 0:01:01]} ({Black should try} 23... Qh4 $19 24. Qe1 Ng3+ 25. Kg1 g5) 24. Nxf4 $17 {[%emt 0:00:08]} Rxe3 {[%emt 0:01:49]} (24... Bxe3 25. Bxe3 Rxe3 26. Qd4 $11) 25. Bxe3 {[%emt 0:02:08]} Bxe3 {[%emt 0:00:02][%csl Ge3][%cal Rg3f2]} 26. Qc2 {[%emt 0:00:14] Inhibits Qf2+.} Bf5 {[%emt 0:01:52] This bishop pair is nice.} (26... Bxf4 27. Qxh7+ Kf8 28. Re1 $15) (26... g6 $1 $17 27. Nh3 Qe5) 27. Bd3 $11 {[%emt 0:01:03]} Bxf4 {[%emt 0:03:21]} 28. Bxf5 {[%emt 0:00:05]} Nxd5 {[%emt 0:00:04]} 29. Bxh7+ {[%emt 0:00:15]} Kf8 {[%emt 0:00:02]} 30. Re1 {[%emt 0:00:50]} Ne3+ {[%emt 0:00:43]} 31. Rxe3 $1 {[%emt 0:00:03]} Bxe3 {[%emt 0:00:02]} 32. Be4 {[%emt 0:01:59] And now Rh8+ would win.} Bh6 {[%emt 0:00:40]} 33. Rh5 {[%emt 0:01:56] Against Qe5} Re8 {[%emt 0:02:04]} 34. Qc3 {[%emt 0:01:52]} Qf4 {[%emt 0:00:53]} 35. Rf5 {[%emt 0:00:30]} Qc1+ {[%emt 0:00:28]} 36. Qxc1 {[%emt 0:00:05]} Bxc1 {[%emt 0:00:05][%mdl 4096] Endgame KRB-KRB} 37. Rb5 {[%emt 0:00:27]} Be3 {[%emt 0:01:13]} 38. Ke2 {[%emt 0:00:07]} Bb6 {[%emt 0:00:18]} 39. Kd3 {[%emt 0:00:16]} Re5 {[%emt 0:00:25]} 40. Bd5 {[%emt 0:04:54]} f5 {[%emt 0:00:57]} 41. a4 {[%emt 0:33:00][%cal Ba2a4,Ba4a5][%mdl 32]} f4 {[%emt 0:09:11]} 42. a5 {[%emt 0:00:00]} Bg1 {[%emt 0:04:30]} 43. b4 {[%emt 0:00:00]} Rg5 {[%emt 0:02:52]} 44. Rb8+ {[%emt 0:00:00]} Ke7 {[%emt 0:00:02]} 45. Rb7+ {[%emt 0:00:00]} Kf6 {[%emt 0:00:40]} 46. Rf7+ {[%emt 0:00:00]} Kg6 {[%emt 0:02:57]} 47. Bb3 {[%emt 0:00:00]} Be3 {[%emt 0:01:49]} 48. Rd7 {[%emt 0:00:00]} (48. g4 $2 fxg3 $1 49. f4 (49. Kxe3 $2 g2 $19) 49... g2 50. fxg5 g1=Q $19) 48... Rxg2 {[%emt 0:00:50]} 49. Rxd6+ {[%emt 0:00:00]} (49. b5 {is more complex.} Rf2 50. b6 Bxb6 51. axb6 Rxf3+ 52. Kc4) 49... Kg5 {[%emt 0:01:46] Strongly threatening ...Rd2+.} 50. Kc3 {[%emt 0:00:00] Inhibits Rd2.} Kh4 {[%emt 0:05:49]} 51. Rd7 {[%emt 0:00:00]} g5 {[%emt 0:01:01]} 52. Be6 {[%emt 0:00:00]} Kg3 {[%emt 0:01:11]} 53. Bg4 {[%emt 0:00:00]} Rf2 {[%emt 0:01:37]} (53... Rg1 $11) 54. Rg7 $14 {[%emt 0:00:00]} Bd2+ {[%emt 0:00:04]} 55. Kc4 {[%emt 0:00:00]} Be3 {[%emt 0:00:44]} 56. Rxg5 {[%emt 0:00:00]} Rc2+ {[%emt 0:00:30]} 57. Kb3 {[%emt 0:00:00]} Rc7 {[%emt 0:00:57]} 58. b5 {[%emt 0:00:00]} Rc1 {[%emt 0:01:00]} 59. Kb2 {[%emt 0:00:00][%cal Ob5b6]} Kf2 {[%emt 0:00:18]} 60. Rd5 {[%emt 0:00:00]} Rc4 {[%emt 0:00:36]} 61. Kb3 {[%emt 0:00:52]} Rc1 {[%emt 0:00:20]} 62. Rh5 {[%emt 0:00:37]} Kg2 {[%emt 0:00:39]} 63. Kb2 {[%emt 0:02:28]} Rc4 {[%emt 0:00:37]} 64. Rg5 {[%emt 0:03:15] Threatens to win with Be6+.} Kf2 {[%emt 0:00:25]} 65. Kb3 {[%emt 0:02:23]} Rc1 {[%emt 0:00:02]} 66. Rg7 {[%emt 0:00:25]} Rb1+ {[%emt 0:00:52]} 67. Kc4 {[%emt 0:00:05]} Rc1+ {[%emt 0:00:17]} 68. Kd3 {[%emt 0:00:06]} Ra1 {[%emt 0:00:19]} 69. a6 {[%emt 0:00:15]} Rb1 {[%emt 0:01:10]} 70. Rb7 {[%emt 0:00:12]} Kg3 {[%emt 0:01:27]} 71. Ke4 {[%emt 0:00:12]} Bb6 $2 {[%emt 0:00:59][%mdl 8192] [#]} (71... Rb2 $14) 72. Rxb6 $1 $18 {[%emt 0:02:53][%mdl 512]} axb6 {[%emt 0:00:02] [#] KR-KB} 73. Bd7 $1 {[%emt 0:01:09]} (73. a7 Ra1 74. Kd5 Rxa7 $19) 73... Re1+ {[%emt 0:00:20] [#]} 74. Kd5 $2 {[%emt 0:00:47]} (74. Kf5 $1 $18 Rh1 75. Bc6 (75. a7 $2 Ra1 $19) 75... Rh5+ 76. Ke6 Rh6+ 77. Ke5) 74... Kxf3 $11 {[%emt 0:00:15] Hoping for ...Kg3. The position is equal.} 75. Kc6 {[%emt 0:00:03] White threatens a7 and mate.} Kg3 $1 {[%emt 0:01:12] aiming for ...f3.} 76. a7 {[%emt 0:00:16]} Ra1 {[%emt 0:00:04]} 77. Kb7 {[%emt 0:00:05]} (77. Kxb6 f3 78. Be6 f2) 77... f3 {[%emt 0:00:32] ( -> ...f2)} 78. Be6 {[%emt 0:00:25]} f2 {[%emt 0:00:25]} 79. Bc4 {[%emt 0:00:03][%mdl 32768] Never resign too early!  Weighted Error Value: White=0.19 (very precise) /Black=0.18 (very precise) . Loss on time!?} 1-0